[Event "*** Titled Tuesday Blitz"]
[Site "Chess.com"]
[Date "2021.02.09"]
[Round "8"]
[White "Sofiia_Hryzlova"]
[Black "zacachess"]
[Result "0-1"]
[WhiteElo "2270"]
[BlackElo "2415"]
[TimeControl "180+1"]
[EndTime "11:29:56 PST"]
[Termination "zacachess won on time"]

1. Nf3 {[%clk 0:02:58.3]} 1... Nf6 {[%clk 0:02:59.8]} 2. d4 {[%clk 0:02:53.6]}
2... g6 {[%clk 0:02:58.6]} 3. g3 {[%clk 0:02:53.9]} 3... Bg7 {[%clk 0:02:59.1]}
4. Bg2 {[%clk 0:02:54.8]} 4... O-O {[%clk 0:02:59.8]} 5. b3 {[%clk 0:02:55]}
5... d6 {[%clk 0:03:00.4]} 6. Bb2 {[%clk 0:02:55.3]} 6... c5 {[%clk 0:02:48.3]}
7. d5 {[%clk 0:02:45.8]} 7... e5 {[%clk 0:02:41.4]} 8. dxe6 {[%clk 0:02:34.8]}
8... Bxe6 {[%clk 0:02:39.4]} 9. c4 {[%clk 0:02:29.8]} 9... h6 {[%clk 0:02:26.3]}
10. O-O {[%clk 0:02:27.5]} 10... d5 {[%clk 0:02:20.4]} 11. cxd5 {[%clk
0:02:11.7]} 11... Nxd5 {[%clk 0:02:19.3]} 12. Bxg7 {[%clk 0:02:11]} 12... Kxg7
{[%clk 0:02:20.2]} 13. Qc2 {[%clk 0:02:05.1]} 13... Qe7 {[%clk 0:02:12]} 14.
Nbd2 {[%clk 0:01:49.5]} 14... Nc6 {[%clk 0:02:05.1]} 15. Rac1 {[%clk 0:01:37.4]}
15... b6 {[%clk 0:02:03.2]} 16. e4 {[%clk 0:01:23.2]} 16... Ndb4 {[%clk
0:01:54.6]} 17. Qc3+ {[%clk 0:01:16.9]} 17... Kg8 {[%clk 0:01:54.1]} 18. Qe3
{[%clk 0:01:06.5]} 18... Nxa2 {[%clk 0:01:20.9]} 19. Ra1 {[%clk 0:01:00.4]}
19... Nab4 {[%clk 0:01:20.4]} 20. Qxh6 {[%clk 0:00:59.4]} 20... Qf6 {[%clk
0:01:20.7]} 21. Ng5 {[%clk 0:00:48.1]} 21... Qg7 {[%clk 0:01:20.2]} 22. Qxg7+
{[%clk 0:00:44]} 22... Kxg7 {[%clk 0:01:21.1]} 23. Nxe6+ {[%clk 0:00:44.2]}
23... fxe6 {[%clk 0:01:22]} 24. e5 {[%clk 0:00:30.7]} 24... Rad8 {[%clk
0:01:19.9]} 25. Nc4 {[%clk 0:00:29.7]} 25... Rd3 {[%clk 0:01:04.3]} 26. Rfb1
{[%clk 0:00:20.5]} 26... Rc3 {[%clk 0:00:40]} 27. Nd6 {[%clk 0:00:19.4]} 27...
Rc2 {[%clk 0:00:35.7]} 28. Ne4 {[%clk 0:00:18.6]} 28... Nxe5 {[%clk 0:00:33.4]}
29. Rxa7+ {[%clk 0:00:17.6]} 29... Rf7 {[%clk 0:00:34]} 30. Rxf7+ {[%clk
0:00:16.9]} 30... Kxf7 {[%clk 0:00:34.9]} 31. Ng5+ {[%clk 0:00:16.8]} 31... Kf6
{[%clk 0:00:32.5]} 32. f4 {[%clk 0:00:17]} 32... Ned3 {[%clk 0:00:31.5]} 33. Ra1
{[%clk 0:00:14.2]} 33... Rc1+ {[%clk 0:00:31]} 34. Rxc1 {[%clk 0:00:14.1]} 34...
Nxc1 {[%clk 0:00:31.9]} 35. Bf1 {[%clk 0:00:12.7]} 35... Nxb3 {[%clk 0:00:31.7]}
36. Bc4 {[%clk 0:00:11.7]} 36... Nd4 {[%clk 0:00:31.8]} 37. Kf2 {[%clk
0:00:11.6]} 37... b5 {[%clk 0:00:32.3]} 38. Bf1 {[%clk 0:00:11.2]} 38... c4
{[%clk 0:00:32.1]} 39. Ke3 {[%clk 0:00:10]} 39... Nf5+ {[%clk 0:00:30.3]} 40.
Kd2 {[%clk 0:00:09.5]} 40... Nd5 {[%clk 0:00:30.4]} 41. Be2 {[%clk 0:00:05]}
41... Nd6 {[%clk 0:00:30.5]} 42. Kc2 {[%clk 0:00:04.4]} 42... b4 {[%clk
0:00:30.6]} 43. Bf3 {[%clk 0:00:02.4]} 43... b3+ {[%clk 0:00:30.6]} 44. Kc1
{[%clk 0:00:02.1]} 44... Nb5 {[%clk 0:00:30.7]} 45. Ne4+ {[%clk 0:00:02.3]}
45... Ke7 {[%clk 0:00:30.2]} 46. Be2 {[%clk 0:00:02.3]} 46... Nb6 {[%clk
0:00:27.7]} 47. Nd2 {[%clk 0:00:02.5]} 47... Nd6 {[%clk 0:00:27.3]} 48. Kb2
{[%clk 0:00:01.9]} 48... Kd7 {[%clk 0:00:26.5]} 49. Kc3 {[%clk 0:00:01.8]} 49...
Nd5+ {[%clk 0:00:26.6]} 50. Kd4 {[%clk 0:00:01]} 50... c3 {[%clk 0:00:16.3]} 51.
Bc4 {[%clk 0:00:01.9]} 51... cxd2 {[%clk 0:00:15.8]} 52. Bxd5 {[%clk 0:00:01.8]}
52... d1=Q+ {[%clk 0:00:15.4]} 0-1

[Event "*** Titled Tuesday Blitz"]
[Site "Chess.com"]
[Date "2021.02.09"]
[Round "8"]
[White "Kobalia"]
[Black "bazar-wokzal"]
[Result "0-1"]
[WhiteElo "2677"]
[BlackElo "2556"]
[TimeControl "180+1"]
[EndTime "11:29:58 PST"]
[Termination "bazar-wokzal won on time"]

1. e4 {[%clk 0:03:00.9]} 1... Nc6 {[%clk 0:02:57.4]} 2. Nf3 {[%clk 0:03:00.4]}
2... d5 {[%clk 0:02:57.7]} 3. exd5 {[%clk 0:03:00.5]} 3... Qxd5 {[%clk
0:02:58.6]} 4. Nc3 {[%clk 0:03:00.9]} 4... Qa5 {[%clk 0:02:59.2]} 5. Bb5 {[%clk
0:03:00.7]} 5... Bd7 {[%clk 0:02:59.5]} 6. O-O {[%clk 0:03:00.1]} 6... a6 {[%clk
0:02:59.2]} 7. Bxc6 {[%clk 0:02:58.5]} 7... Bxc6 {[%clk 0:03:00.1]} 8. d4 {[%clk
0:02:57.9]} 8... O-O-O {[%clk 0:02:56.4]} 9. Ne5 {[%clk 0:02:38.9]} 9... Be8
{[%clk 0:02:55.1]} 10. Qf3 {[%clk 0:02:22.4]} 10... f6 {[%clk 0:02:53.9]} 11.
Nc4 {[%clk 0:02:15.2]} 11... Qh5 {[%clk 0:02:51.9]} 12. Qe3 {[%clk 0:01:58]}
12... Nh6 {[%clk 0:02:40.1]} 13. d5 {[%clk 0:01:54]} 13... Kb8 {[%clk
0:02:39.4]} 14. h3 {[%clk 0:01:50.1]} 14... Bf7 {[%clk 0:02:31.5]} 15. Rd1
{[%clk 0:01:43.8]} 15... e6 {[%clk 0:02:06.8]} 16. d6 {[%clk 0:01:38.6]} 16...
Bxd6 {[%clk 0:02:02.9]} 17. Nxd6 {[%clk 0:01:37.2]} 17... Rxd6 {[%clk
0:02:03.4]} 18. Rxd6 {[%clk 0:01:35.3]} 18... cxd6 {[%clk 0:02:04.3]} 19. Qb6
{[%clk 0:01:31.1]} 19... Qc5 {[%clk 0:01:42.9]} 20. Qxc5 {[%clk 0:01:29.7]}
20... dxc5 {[%clk 0:01:43.2]} 21. Bxh6 {[%clk 0:01:30.2]} 21... gxh6 {[%clk
0:01:44.1]} 22. Ne4 {[%clk 0:01:30.2]} 22... Rd8 {[%clk 0:01:17.8]} 23. c3
{[%clk 0:01:09.3]} 23... f5 {[%clk 0:01:10.5]} 24. Nxc5 {[%clk 0:01:08.4]} 24...
Rd2 {[%clk 0:01:10.3]} 25. b4 {[%clk 0:01:07.5]} 25... e5 {[%clk 0:01:09]} 26.
a4 {[%clk 0:01:06.6]} 26... Bc4 {[%clk 0:01:02.8]} 27. Re1 {[%clk 0:00:57.9]}
27... b6 {[%clk 0:00:58.4]} 28. Rxe5 {[%clk 0:00:51.7]} 28... bxc5 {[%clk
0:00:58.8]} 29. Rxc5 {[%clk 0:00:51.1]} 29... Bd3 {[%clk 0:00:59.1]} 30. Rd5
{[%clk 0:00:47.8]} 30... Rd1+ {[%clk 0:00:56.1]} 31. Kh2 {[%clk 0:00:47.4]}
31... Bc2 {[%clk 0:00:56.7]} 32. Re5 {[%clk 0:00:44.8]} 32... Kc7 {[%clk
0:00:52.3]} 33. Re6 {[%clk 0:00:41.4]} 33... Rd6 {[%clk 0:00:49.3]} 34. Re7+
{[%clk 0:00:41.3]} 34... Kb6 {[%clk 0:00:41.8]} 35. Rxh7 {[%clk 0:00:38.1]}
35... Bxa4 {[%clk 0:00:40.8]} 36. g4 {[%clk 0:00:34.4]} 36... fxg4 {[%clk
0:00:37.9]} 37. hxg4 {[%clk 0:00:35.3]} 37... Bd1 {[%clk 0:00:35.4]} 38. Kg3
{[%clk 0:00:31.8]} 38... Rd3+ {[%clk 0:00:32.9]} 39. Kh4 {[%clk 0:00:31.3]}
39... Rxc3 {[%clk 0:00:33.1]} 40. Rxh6+ {[%clk 0:00:30.7]} 40... Kb5 {[%clk
0:00:33.6]} 41. f4 {[%clk 0:00:30.3]} 41... Rc4 {[%clk 0:00:30.1]} 42. Rf6
{[%clk 0:00:25.7]} 42... Rxb4 {[%clk 0:00:26]} 43. g5 {[%clk 0:00:25.7]} 43...
a5 {[%clk 0:00:26.3]} 44. g6 {[%clk 0:00:26]} 44... a4 {[%clk 0:00:26.6]} 45. g7
{[%clk 0:00:26.3]} 45... Bb3 {[%clk 0:00:26.8]} 46. Rf8 {[%clk 0:00:26.5]} 46...
a3 {[%clk 0:00:26.8]} 47. Rb8+ {[%clk 0:00:24.6]} 47... Kc5 {[%clk 0:00:25.2]}
48. g8=Q {[%clk 0:00:22.3]} 48... Bxg8 {[%clk 0:00:23.7]} 49. Rxg8 {[%clk
0:00:22.7]} 49... Rxf4+ {[%clk 0:00:22.9]} 50. Kh3 {[%clk 0:00:05.4]} 50... Kb4
{[%clk 0:00:17.5]} 51. Rb8+ {[%clk 0:00:03.5]} 51... Kc3 {[%clk 0:00:17.4]} 52.
Ra8 {[%clk 0:00:02.1]} 52... Kb3 {[%clk 0:00:17.1]} 0-1

[Event "*** Titled Tuesday Blitz"]
[Site "Chess.com"]
[Date "2021.02.09"]
[Round "8"]
[White "ZivkovicN"]
[Black "Iskusnyh"]
[Result "1-0"]
[WhiteElo "2472"]
[BlackElo "2587"]
[TimeControl "180+1"]
[EndTime "11:29:59 PST"]
[Termination "ZivkovicN won on time"]

1. e4 {[%clk 0:03:00.9]} 1... e6 {[%clk 0:02:56.5]} 2. d4 {[%clk 0:02:57.9]}
2... d5 {[%clk 0:02:57.1]} 3. Nd2 {[%clk 0:02:57.8]} 3... c5 {[%clk 0:02:56.4]}
4. Ngf3 {[%clk 0:02:57.2]} 4... Nc6 {[%clk 0:02:53.2]} 5. exd5 {[%clk
0:02:55.5]} 5... exd5 {[%clk 0:02:52.7]} 6. Bb5 {[%clk 0:02:53.3]} 6... cxd4
{[%clk 0:02:52.6]} 7. O-O {[%clk 0:02:46.1]} 7... Bd6 {[%clk 0:02:52]} 8. Nb3
{[%clk 0:02:43.7]} 8... Ne7 {[%clk 0:02:51.6]} 9. Nfxd4 {[%clk 0:02:39.3]} 9...
O-O {[%clk 0:02:51.6]} 10. Bg5 {[%clk 0:02:29]} 10... Qc7 {[%clk 0:02:44.2]} 11.
h3 {[%clk 0:02:13.2]} 11... h6 {[%clk 0:02:32.6]} 12. Bxe7 {[%clk 0:02:02.7]}
12... Nxe7 {[%clk 0:02:29.2]} 13. Re1 {[%clk 0:02:00.4]} 13... a6 {[%clk
0:02:02]} 14. Bd3 {[%clk 0:01:58.6]} 14... Bd7 {[%clk 0:01:59.4]} 15. Qf3 {[%clk
0:01:52.6]} 15... Rae8 {[%clk 0:01:57.1]} 16. Re2 {[%clk 0:01:46.7]} 16... Nc6
{[%clk 0:01:04.7]} 17. Rxe8 {[%clk 0:01:07.2]} 17... Rxe8 {[%clk 0:01:03.5]} 18.
Qxd5 {[%clk 0:01:05.6]} 18... Nb4 {[%clk 0:01:01]} 19. Qf3 {[%clk 0:01:00.4]}
19... Nxd3 {[%clk 0:01:00.3]} 20. Qxd3 {[%clk 0:00:59.5]} 20... Bc8 {[%clk
0:00:52.9]} 21. Rd1 {[%clk 0:00:58.4]} 21... Qe7 {[%clk 0:00:51.5]} 22. Nf3
{[%clk 0:00:53.6]} 22... Bc7 {[%clk 0:00:51.2]} 23. Nbd4 {[%clk 0:00:51.1]}
23... Qf6 {[%clk 0:00:47.5]} 24. Qd2 {[%clk 0:00:45.6]} 24... Bf4 {[%clk
0:00:44.9]} 25. Qb4 {[%clk 0:00:39]} 25... Qg6 {[%clk 0:00:33.6]} 26. Kh1 {[%clk
0:00:35.5]} 26... Qh5 {[%clk 0:00:30.9]} 27. Re1 {[%clk 0:00:25.6]} 27... Rxe1+
{[%clk 0:00:23.4]} 28. Qxe1 {[%clk 0:00:25]} 28... Qc5 {[%clk 0:00:13.3]} 29.
Qe8+ {[%clk 0:00:21]} 29... Qf8 {[%clk 0:00:13.3]} 30. Qe4 {[%clk 0:00:21.2]}
30... Bd6 {[%clk 0:00:12.5]} 31. Nf5 {[%clk 0:00:17.8]} 31... Bc5 {[%clk
0:00:10.5]} 32. Kg1 {[%clk 0:00:10]} 32... Qd8 {[%clk 0:00:10.2]} 33. N5d4
{[%clk 0:00:09.7]} 33... Be7 {[%clk 0:00:08.3]} 34. c3 {[%clk 0:00:09.6]} 34...
Bf6 {[%clk 0:00:08.3]} 35. g3 {[%clk 0:00:09.7]} 35... Bxh3 {[%clk 0:00:07.2]}
36. Ne5 {[%clk 0:00:09.5]} 36... Qe7 {[%clk 0:00:04.8]} 37. f4 {[%clk
0:00:08.8]} 37... h5 {[%clk 0:00:03.8]} 38. Qd5 {[%clk 0:00:07.7]} 38... Bg4
{[%clk 0:00:02.9]} 39. Kf2 {[%clk 0:00:08]} 39... g6 {[%clk 0:00:02.6]} 40. Ndf3
{[%clk 0:00:05.6]} 40... Kg7 {[%clk 0:00:02]} 41. Nd2 {[%clk 0:00:02.7]} 41...
Qc7 {[%clk 0:00:01.8]} 42. Ne4 {[%clk 0:00:02.7]} 42... Qb6+ {[%clk 0:00:02.4]}
43. Qd4 {[%clk 0:00:01.9]} 43... Qxb2+ {[%clk 0:00:02.5]} 44. Ke3 {[%clk
0:00:02.5]} 44... Qc1+ {[%clk 0:00:02.4]} 45. Kd3 {[%clk 0:00:02.5]} 45... Qd1+
{[%clk 0:00:02.4]} 46. Nd2 {[%clk 0:00:01.3]} 46... Bxe5 {[%clk 0:00:01.2]} 47.
Qxe5+ {[%clk 0:00:01]} 47... Kg8 {[%clk 0:00:01.6]} 48. Qe3 {[%clk 0:00:01.9]}
48... Qc1 {[%clk 0:00:01.1]} 49. Kc4 {[%clk 0:00:02.4]} 1-0

[Event "*** Titled Tuesday Blitz"]
[Site "Chess.com"]
[Date "2021.02.09"]
[Round "8"]
[White "Mihnea2017"]
[Black "enriquetejedor"]
[Result "0-1"]
[WhiteElo "2407"]
[BlackElo "2542"]
[TimeControl "180+1"]
[EndTime "11:30:03 PST"]
[Termination "enriquetejedor won by resignation"]

1. e4 {[%clk 0:03:00.9]} 1... e5 {[%clk 0:02:50.2]} 2. Nf3 {[%clk 0:03:00.7]}
2... Nc6 {[%clk 0:02:43.1]} 3. Bc4 {[%clk 0:03:00.3]} 3... Bc5 {[%clk
0:02:39.8]} 4. c3 {[%clk 0:02:59.6]} 4... Nf6 {[%clk 0:01:59.6]} 5. d3 {[%clk
0:02:58.4]} 5... O-O {[%clk 0:01:52.5]} 6. Nbd2 {[%clk 0:02:56.4]} 6... d5
{[%clk 0:01:34.8]} 7. exd5 {[%clk 0:02:56.1]} 7... Nxd5 {[%clk 0:01:35.7]} 8.
O-O {[%clk 0:02:55.7]} 8... Nb6 {[%clk 0:01:30.2]} 9. Bb5 {[%clk 0:02:54.8]}
9... Bd6 {[%clk 0:01:26.2]} 10. Re1 {[%clk 0:02:31]} 10... Re8 {[%clk
0:01:20.1]} 11. a4 {[%clk 0:02:14.1]} 11... Bd7 {[%clk 0:01:09.5]} 12. a5 {[%clk
0:02:09.2]} 12... Nd5 {[%clk 0:01:08.3]} 13. a6 {[%clk 0:02:05.6]} 13... b6
{[%clk 0:01:04.6]} 14. Nc4 {[%clk 0:02:00.5]} 14... Qf6 {[%clk 0:00:51.5]} 15.
Be3 {[%clk 0:01:21.2]} 15... h6 {[%clk 0:00:43]} 16. Qa4 {[%clk 0:01:20.1]}
16... Nde7 {[%clk 0:00:39.5]} 17. d4 {[%clk 0:01:17.1]} 17... exd4 {[%clk
0:00:35.1]} 18. Nxd4 {[%clk 0:01:16.3]} 18... Rad8 {[%clk 0:00:25.7]} 19. Nxd6
{[%clk 0:00:56.8]} 19... Qxd6 {[%clk 0:00:20.4]} 20. Rad1 {[%clk 0:00:57.1]}
20... Nxd4 {[%clk 0:00:19.4]} 21. Bxd4 {[%clk 0:00:51.4]} 21... Bxb5 {[%clk
0:00:18.3]} 22. Qxb5 {[%clk 0:00:52.3]} 22... Qc6 {[%clk 0:00:18]} 23. Qh5
{[%clk 0:00:42.8]} 23... Qg6 {[%clk 0:00:16.8]} 24. Qf3 {[%clk 0:00:42]} 24...
Nf5 {[%clk 0:00:15.6]} 25. Qb7 {[%clk 0:00:31.8]} 25... Rxe1+ {[%clk 0:00:12.5]}
26. Rxe1 {[%clk 0:00:31.7]} 26... Nxd4 {[%clk 0:00:11.2]} 27. cxd4 {[%clk
0:00:32]} 27... Rxd4 {[%clk 0:00:08.7]} 28. Qxa7 {[%clk 0:00:32]} 28... Qe4
{[%clk 0:00:03.8]} 29. Qb8+ {[%clk 0:00:25.6]} 29... Kh7 {[%clk 0:00:03.7]} 30.
Rf1 {[%clk 0:00:24.1]} 30... Qc6 {[%clk 0:00:02.9]} 31. a7 {[%clk 0:00:18.6]}
31... Ra4 {[%clk 0:00:02.6]} 32. h4 {[%clk 0:00:18.2]} 32... g5 {[%clk 0:00:02]}
33. hxg5 {[%clk 0:00:17.8]} 33... Rg4 {[%clk 0:00:02.3]} 34. f3 {[%clk
0:00:17.7]} 34... Ra4 {[%clk 0:00:02]} 35. gxh6 {[%clk 0:00:17.2]} 35... Qc5+
{[%clk 0:00:02.1]} 36. Rf2 {[%clk 0:00:16.1]} 36... Ra1+ {[%clk 0:00:02.3]} 37.
Kh2 {[%clk 0:00:15.8]} 37... Qxf2 {[%clk 0:00:02.5]} 38. Qd8 {[%clk 0:00:12.4]}
38... Qc5 {[%clk 0:00:01.7]} 39. a8=Q {[%clk 0:00:08.9]} 39... Rxa8 {[%clk
0:00:01.4]} 40. Qxa8 {[%clk 0:00:06.8]} 40... Qe5+ {[%clk 0:00:01.5]} 41. Kh3
{[%clk 0:00:04.6]} 41... Qxb2 {[%clk 0:00:01.6]} 42. Qe4+ {[%clk 0:00:03.9]}
42... Kxh6 {[%clk 0:00:01.5]} 43. Qf4+ {[%clk 0:00:04.5]} 43... Kg7 {[%clk
0:00:02]} 44. Qg5+ {[%clk 0:00:04.9]} 44... Kh7 {[%clk 0:00:02.5]} 45. Qh5+
{[%clk 0:00:05.2]} 45... Kg8 {[%clk 0:00:03.1]} 46. f4 {[%clk 0:00:04.8]} 46...
Qh8 {[%clk 0:00:03]} 47. Kg4 {[%clk 0:00:03]} 47... Qxh5+ {[%clk 0:00:03]} 48.
Kxh5 {[%clk 0:00:03.7]} 48... b5 {[%clk 0:00:03.2]} 49. Kg4 {[%clk 0:00:04.6]}
49... b4 {[%clk 0:00:02.6]} 50. Kf3 {[%clk 0:00:05.5]} 50... b3 {[%clk 0:00:03]}
51. Ke3 {[%clk 0:00:05.5]} 51... b2 {[%clk 0:00:03.9]} 52. Kd4 {[%clk
0:00:04.7]} 52... b1=Q {[%clk 0:00:04.2]} 0-1

[Event "*** Titled Tuesday Blitz"]
[Site "Chess.com"]
[Date "2021.02.09"]
[Round "8"]
[White "PavelShkapenko"]
[Black "Ave_Mariia"]
[Result "1-0"]
[WhiteElo "2690"]
[BlackElo "2487"]
[TimeControl "180+1"]
[EndTime "11:30:04 PST"]
[Termination "PavelShkapenko won on time"]

1. e4 {[%clk 0:02:58.4]} 1... c5 {[%clk 0:03:00]} 2. c3 {[%clk 0:02:58.5]} 2...
d5 {[%clk 0:02:58.6]} 3. exd5 {[%clk 0:02:58.6]} 3... Qxd5 {[%clk 0:02:59.5]} 4.
Nf3 {[%clk 0:02:59]} 4... Nc6 {[%clk 0:02:58.7]} 5. d4 {[%clk 0:02:58.6]} 5...
Nf6 {[%clk 0:02:56.7]} 6. Be2 {[%clk 0:02:57.6]} 6... e6 {[%clk 0:02:46.4]} 7.
O-O {[%clk 0:02:55.9]} 7... Be7 {[%clk 0:02:46.4]} 8. c4 {[%clk 0:02:56]} 8...
Qd8 {[%clk 0:02:43]} 9. dxc5 {[%clk 0:02:55.8]} 9... O-O {[%clk 0:02:30.6]} 10.
Nc3 {[%clk 0:02:37.3]} 10... Bxc5 {[%clk 0:02:29.7]} 11. a3 {[%clk 0:02:35.2]}
11... e5 {[%clk 0:02:18.1]} 12. Bg5 {[%clk 0:02:22]} 12... Be7 {[%clk
0:01:50.3]} 13. b4 {[%clk 0:02:09.2]} 13... e4 {[%clk 0:01:43.7]} 14. Nd2 {[%clk
0:01:38]} 14... Bf5 {[%clk 0:01:30.2]} 15. Nb3 {[%clk 0:01:27.9]} 15... Ne5
{[%clk 0:01:24.4]} 16. Qxd8 {[%clk 0:01:11.5]} 16... Rfxd8 {[%clk 0:01:24.1]}
17. Rfd1 {[%clk 0:01:09.8]} 17... Rac8 {[%clk 0:01:07.6]} 18. Rxd8+ {[%clk
0:00:56.5]} 18... Rxd8 {[%clk 0:01:04.8]} 19. Rd1 {[%clk 0:00:56.8]} 19... Rxd1+
{[%clk 0:01:03.7]} 20. Nxd1 {[%clk 0:00:56.9]} 20... Be6 {[%clk 0:00:57.8]} 21.
Ne3 {[%clk 0:00:52.1]} 21... b5 {[%clk 0:00:54.7]} 22. Na5 {[%clk 0:00:39.9]}
22... bxc4 {[%clk 0:00:48.6]} 23. Nexc4 {[%clk 0:00:38.4]} 23... Nxc4 {[%clk
0:00:40.6]} 24. Bxc4 {[%clk 0:00:38.6]} 24... Bxc4 {[%clk 0:00:40.9]} 25. Nxc4
{[%clk 0:00:39.2]} 25... h6 {[%clk 0:00:41.4]} 26. Bf4 {[%clk 0:00:36.3]} 26...
Nd5 {[%clk 0:00:40.3]} 27. Bd6 {[%clk 0:00:33.7]} 27... Bf6 {[%clk 0:00:29.8]}
28. Bc5 {[%clk 0:00:32.9]} 28... a6 {[%clk 0:00:25.2]} 29. a4 {[%clk 0:00:33.2]}
29... Nc3 {[%clk 0:00:23.7]} 30. Nb6 {[%clk 0:00:26.9]} 30... Bd8 {[%clk
0:00:22.4]} 31. a5 {[%clk 0:00:20.7]} 31... f5 {[%clk 0:00:16.4]} 32. Kf1 {[%clk
0:00:20.8]} 32... Kf7 {[%clk 0:00:16.4]} 33. Bd4 {[%clk 0:00:19.9]} 33... Nb5
{[%clk 0:00:16]} 34. Bc5 {[%clk 0:00:18.3]} 34... Ke6 {[%clk 0:00:15.6]} 35. Ke2
{[%clk 0:00:18.5]} 35... Bc7 {[%clk 0:00:12.9]} 36. g3 {[%clk 0:00:17.4]} 36...
Bd6 {[%clk 0:00:12.2]} 37. Na4 {[%clk 0:00:17]} 37... Kd5 {[%clk 0:00:09.6]} 38.
Bxd6 {[%clk 0:00:16.7]} 38... Nxd6 {[%clk 0:00:07.9]} 39. Nc5 {[%clk 0:00:16.9]}
39... Kc4 {[%clk 0:00:06.7]} 40. Nxa6 {[%clk 0:00:16.4]} 40... Kb5 {[%clk
0:00:06.9]} 41. Nc7+ {[%clk 0:00:16.5]} 41... Kxb4 {[%clk 0:00:07.4]} 42. a6
{[%clk 0:00:17]} 42... Nc8 {[%clk 0:00:06.7]} 43. Ke3 {[%clk 0:00:15.5]} 43...
Ka5 {[%clk 0:00:05.4]} 44. Kf4 {[%clk 0:00:15.6]} 44... Kb6 {[%clk 0:00:05.7]}
45. Ne6 {[%clk 0:00:15.8]} 45... g6 {[%clk 0:00:03.9]} 46. Nf8 {[%clk
0:00:14.3]} 46... Ne7 {[%clk 0:00:04]} 47. Nxg6 {[%clk 0:00:12.9]} 47... Nxg6+
{[%clk 0:00:03.7]} 48. Kxf5 {[%clk 0:00:13.6]} 48... Ne7+ {[%clk 0:00:03.8]} 49.
Kxe4 {[%clk 0:00:14]} 49... Kxa6 {[%clk 0:00:04.4]} 50. Ke5 {[%clk 0:00:14.4]}
50... Kb7 {[%clk 0:00:04.8]} 51. Kf6 {[%clk 0:00:14.8]} 51... Nd5+ {[%clk
0:00:04.8]} 52. Kg6 {[%clk 0:00:15.1]} 52... Nc3 {[%clk 0:00:02.8]} 53. f4
{[%clk 0:00:13.9]} 53... Kc6 {[%clk 0:00:02.6]} 54. Kxh6 {[%clk 0:00:14.1]}
54... Kd5 {[%clk 0:00:02.6]} 55. Kg6 {[%clk 0:00:13.9]} 1-0

[Event "*** Titled Tuesday Blitz"]
[Site "Chess.com"]
[Date "2021.02.09"]
[Round "8"]
[White "szachuspl"]
[Black "Andrakhanova"]
[Result "1-0"]
[WhiteElo "2501"]
[BlackElo "2244"]
[TimeControl "180+1"]
[EndTime "11:30:05 PST"]
[Termination "szachuspl won on time"]

1. h4 {[%clk 0:03:00.9]} 1... d5 {[%clk 0:02:57.4]} 2. h5 {[%clk 0:02:58.9]}
2... h6 {[%clk 0:02:56.9]} 3. c4 {[%clk 0:02:51.7]} 3... e6 {[%clk 0:02:55.4]}
4. Nf3 {[%clk 0:02:47.4]} 4... c6 {[%clk 0:02:54.8]} 5. b3 {[%clk 0:02:46.1]}
5... Nf6 {[%clk 0:02:53.7]} 6. Bb2 {[%clk 0:02:45.7]} 6... Nbd7 {[%clk
0:02:52.9]} 7. e3 {[%clk 0:02:45]} 7... Bd6 {[%clk 0:02:51.8]} 8. Qc2 {[%clk
0:02:42.6]} 8... a5 {[%clk 0:02:50.5]} 9. a3 {[%clk 0:02:41.1]} 9... Qe7 {[%clk
0:02:49.5]} 10. Be2 {[%clk 0:02:39.9]} 10... O-O {[%clk 0:02:44.4]} 11. Nc3
{[%clk 0:02:37]} 11... Rd8 {[%clk 0:02:41.9]} 12. Nd4 {[%clk 0:02:31.5]} 12...
dxc4 {[%clk 0:02:34.7]} 13. bxc4 {[%clk 0:02:31.2]} 13... Nc5 {[%clk 0:02:33.1]}
14. g4 {[%clk 0:02:28.5]} 14... Be5 {[%clk 0:02:19.2]} 15. g5 {[%clk 0:02:26.9]}
15... hxg5 {[%clk 0:02:15.3]} 16. Nf3 {[%clk 0:02:26.8]} 16... Bxc3 {[%clk
0:02:09.3]} 17. Bxc3 {[%clk 0:02:23.2]} 17... g4 {[%clk 0:02:07.6]} 18. Ng5
{[%clk 0:02:20.4]} 18... e5 {[%clk 0:02:05]} 19. h6 {[%clk 0:02:15.5]} 19... g6
{[%clk 0:02:04.5]} 20. h7+ {[%clk 0:02:15.7]} 20... Kh8 {[%clk 0:02:04.6]} 21.
a4 {[%clk 0:02:12.2]} 21... Bf5 {[%clk 0:02:02.6]} 22. Qb2 {[%clk 0:02:12]}
22... Nfd7 {[%clk 0:01:57.4]} 23. Bxe5+ {[%clk 0:01:35.2]} 23... f6 {[%clk
0:01:57.4]} 24. Bc3 {[%clk 0:01:32.7]} 24... Ne4 {[%clk 0:01:48.2]} 25. Nxe4
{[%clk 0:01:31]} 25... Bxe4 {[%clk 0:01:49.1]} 26. Rh2 {[%clk 0:01:27.8]} 26...
Bf3 {[%clk 0:01:28.4]} 27. Bxf3 {[%clk 0:01:24.6]} 27... gxf3 {[%clk 0:01:29.3]}
28. O-O-O {[%clk 0:01:24.8]} 28... Ne5 {[%clk 0:01:17.4]} 29. Bxe5 {[%clk
0:01:19.8]} 29... Qxe5 {[%clk 0:01:18.3]} 30. Qxe5 {[%clk 0:01:16.9]} 30... fxe5
{[%clk 0:01:19.2]} 31. Rg1 {[%clk 0:01:16.8]} 31... Kg7 {[%clk 0:01:15.1]} 32.
Rh3 {[%clk 0:01:13.4]} 32... Rh8 {[%clk 0:01:07.3]} 33. Rxf3 {[%clk 0:01:12.8]}
33... Rxh7 {[%clk 0:01:06.9]} 34. Rfg3 {[%clk 0:01:13.5]} 34... Rh6 {[%clk
0:01:07]} 35. d3 {[%clk 0:01:13.7]} 35... Rd8 {[%clk 0:01:00.5]} 36. Kc2 {[%clk
0:01:12.8]} 36... Kf6 {[%clk 0:00:54.8]} 37. Kc3 {[%clk 0:01:10.3]} 37... Rd7
{[%clk 0:00:42.4]} 38. c5 {[%clk 0:01:07.6]} 38... Rd5 {[%clk 0:00:34.9]} 39.
Kc4 {[%clk 0:00:59.8]} 39... Rh4+ {[%clk 0:00:30.8]} 40. Rg4 {[%clk 0:00:59.4]}
40... Rh6 {[%clk 0:00:22.3]} 41. f4 {[%clk 0:00:56.8]} 41... exf4 {[%clk
0:00:20.5]} 42. Rxf4+ {[%clk 0:00:56.5]} 42... Ke6 {[%clk 0:00:20.7]} 43. Rfg4
{[%clk 0:00:54.7]} 43... Kf6 {[%clk 0:00:19.9]} 44. d4 {[%clk 0:00:54.7]} 44...
Rf5 {[%clk 0:00:19.6]} 45. e4 {[%clk 0:00:51.4]} 45... Rf2 {[%clk 0:00:19.1]}
46. e5+ {[%clk 0:00:47.4]} 46... Kf7 {[%clk 0:00:18.6]} 47. R4g2 {[%clk
0:00:46.7]} 47... Rf3 {[%clk 0:00:15.6]} 48. e6+ {[%clk 0:00:46.8]} 48... Kxe6
{[%clk 0:00:15.3]} 49. Rxg6+ {[%clk 0:00:47]} 49... Rxg6 {[%clk 0:00:16.2]} 50.
Rxg6+ {[%clk 0:00:46.6]} 50... Kf7 {[%clk 0:00:16.1]} 51. Rd6 {[%clk 0:00:45.9]}
51... Ra3 {[%clk 0:00:15.1]} 52. Rd7+ {[%clk 0:00:43.5]} 52... Ke6 {[%clk
0:00:15.3]} 53. Rxb7 {[%clk 0:00:44.4]} 53... Rxa4+ {[%clk 0:00:15.7]} 54. Kd3
{[%clk 0:00:44.7]} 54... Ra1 {[%clk 0:00:14.3]} 55. Rb8 {[%clk 0:00:36.2]} 55...
Rd1+ {[%clk 0:00:12]} 56. Kc3 {[%clk 0:00:35.9]} 56... Rc1+ {[%clk 0:00:10.1]}
57. Kd2 {[%clk 0:00:35.7]} 57... Ra1 {[%clk 0:00:08.7]} 58. Rd8 {[%clk
0:00:35.7]} 58... a4 {[%clk 0:00:07.3]} 59. Rd6+ {[%clk 0:00:35.5]} 59... Kf5
{[%clk 0:00:07.1]} 60. Rxc6 {[%clk 0:00:34.5]} 60... Ke4 {[%clk 0:00:07.4]} 61.
Rd6 {[%clk 0:00:34.2]} 61... Rh1 {[%clk 0:00:04.8]} 62. Kc3 {[%clk 0:00:32]} 1-0